fUSD/lending_fUSD_20260606
["ID","MTS","AMOUNT","RATE_DAILY","PERIOD"]
[424305183,1780759844000,-200.0,0.00023372,2]
[424305140,1780759844000,-151.0,0.00022824,2]
[424305139,1780759844000,-1005.40643081,0.000227,2]
[424305138,1780759844000,-256.0,0.00022666,2]
[424305137,1780759844000,-150.0,0.00022666,2]
[424305143,1780759844000,-1125.0,0.00022845,2]
[424305141,1780759844000,-200.0,0.00022824,2]
[424305142,1780759844000,-2884.75459676,0.00022824,2]
[424305150,1780759844000,-539.0,0.00023,2]
[424305152,1780759844000,-633.0,0.00023,2]
[424305151,1780759844000,-1005.40643081,0.00023,2]
[424305145,1780759844000,-500.0,0.00022877,2]
[424305147,1780759844000,-500.0,0.0002297,2]
[424305146,1780759844000,-700.0,0.0002297,2]
[424305148,1780759844000,-800.0,0.0002297,2]
[424305149,1780759844000,-3153.0,0.00023,2]
[424305154,1780759844000,-661.0,0.00023,2]
[424305164,1780759844000,-194.37917142,0.00023,2]
[424305153,1780759844000,-3368.0,0.00023,2]
[424305155,1780759844000,-1747.0,0.00023,2]
[424305158,1780759844000,-1042.263907,0.00023,2]
[424305157,1780759844000,-911.0,0.00023,2]
[424305185,1780759844000,-201.32725492,0.00023375,2]
[424305179,1780759844000,-1227.0,0.00023347,2]
[424305192,1780759844000,-167.96129714,0.00023818,2]
[424305213,1780759844000,-150.64131538,0.00024168,2]
[424305211,1780759844000,-495.39674861,0.00024015,2]
[424305212,1780759844000,-200.0,0.00024125,2]
[424305215,1780759844000,-300.0,0.00024173,2]
[424305225,1780759844000,-1107.63007,0.00024453,2]
[424305224,1780759844000,-1068.11,0.00024453,2]
[424305216,1780759844000,-333.29788241,0.00024173,2]
[424305218,1780759844000,-1600.69,0.00024174,2]
[424305219,1780759844000,-10802.60937511,0.0002429,7]
[424305217,1780759844000,-28736.2,0.00024174,2]
[424305220,1780759844000,-4204.8,0.00024324,2]
[424305222,1780759844000,-300.0,0.00024452,2]
[424305223,1780759844000,-1030.0,0.00024453,2]
[424305227,1780759844000,-1191.11104074,0.00024453,2]
[424305226,1780759844000,-1148.61238259,0.00024453,2]
[424305228,1780759844000,-1235.18214925,0.00024453,2]
[424305230,1780759844000,-1280.88388877,0.00024453,2]
[424305229,1780759844000,-693.39197629,0.00024453,2]
[424305233,1780759844000,-1377.42282658,0.00024453,2]
[424305232,1780759844000,-209.40437684,0.00024453,2]
[424305187,1780759844000,-200.0,0.00023474,2]
[424305214,1780759844000,-161.06579836,0.00024173,2]
[424305210,1780759844000,-585.0,0.00024,2]
[424305221,1780759844000,-300.0,0.00024399,2]
[424305209,1780759844000,-948.0,0.00024,2]
[424305208,1780759844000,-4110.0,0.00024,2]
[424305190,1780759844000,-1015.1,0.00023734,7]
[424305189,1780759844000,-1005.91,0.00023734,7]
[424305231,1780759844000,-1328.27659266,0.00024453,2]
[424305186,1780759844000,-13002.73,0.00023394,7]
[424305184,1780759844000,-2991.49051684,0.00023372,2]
[424305188,1780759844000,-613.21,0.00023734,7]
[424305193,1780759844000,-200.0,0.0002392,2]
[424305195,1780759844000,-3153.0,0.00024,2]
[424305197,1780759844000,-633.0,0.00024,2]
[424305196,1780759844000,-539.0,0.00024,2]
[424305191,1780759844000,-1090.53,0.00023734,7]
[424305201,1780759844000,-408.0,0.00024,2]
[424305194,1780759844000,-1125.0,0.00023988,2]
[424305200,1780759844000,-1747.0,0.00024,2]
[424305199,1780759844000,-661.0,0.00024,2]
[424305202,1780759844000,-1042.263907,0.00024,2]
[424305198,1780759844000,-3368.0,0.00024,2]
[424305203,1780759844000,-936.0,0.00024,2]
[424305207,1780759844000,-2972.0,0.00024,2]
[424305206,1780759844000,-675.0,0.00024,2]
[424305205,1780759844000,-154.16845313,0.00024,2]
[424305204,1780759844000,-1092.0,0.00024,2]
[424305269,1780759845000,-151.0,0.00024453,2]
[424305267,1780759845000,-721.12765534,0.00024453,2]
[424305271,1780759845000,-152.0,0.00024453,2]
[424305276,1780759845000,-200.0,0.00024468,2]
[424305273,1780759845000,-152.0,0.00024453,2]
[424305272,1780759845000,-152.0,0.00024453,2]
[424305274,1780759845000,-152.0,0.00024453,2]
[424305266,1780759845000,-152.0,0.00024453,2]
[424305270,1780759845000,-152.0,0.00024453,2]
[424305265,1780759845000,-209.40437684,0.00024453,2]
[424305278,1780759845000,-150.0,0.00024508,2]
[424305268,1780759845000,-152.0,0.00024453,2]
[424305277,1780759845000,-150.0,0.00024508,2]
[424305292,1780759845000,-187.01,0.00024658,2]
[424305280,1780759845000,-719.04747942,0.00024508,2]
[424305287,1780759845000,-773.24136889,0.00024618,2]
[424305282,1780759845000,-151.0,0.00024508,2]
[424305281,1780759845000,-6471.42731478,0.00024508,2]
[424305283,1780759845000,-1525.0,0.00024509,2]
[424305284,1780759845000,-745.65223615,0.00024563,2]
[424305285,1780759845000,-6710.87012543,0.00024563,2]
[424305286,1780759845000,-151.0,0.00024563,2]
[424305288,1780759845000,-6959.17232007,0.00024618,2]
[424305290,1780759845000,-982.71,0.0002463,7]
[424305293,1780759845000,-1048.42,0.00024658,2]
[424305296,1780759845000,-151.0,0.00024658,2]
[424305263,1780759845000,-152.0,0.00024453,2]
[424305279,1780759845000,-264.0,0.00024508,2]
[424305275,1780759845000,-152.0,0.00024453,2]
[424305240,1780759845000,-174.61919141,0.00024453,2]
[424305261,1780759845000,-152.0,0.00024453,2]
[424305234,1780759845000,-151.0,0.00024453,2]
[424305236,1780759845000,-151.0,0.00024453,2]
[424305238,1780759845000,-578.20924308,0.00024453,2]
[424305235,1780759845000,-1428.38747117,0.00024453,2]
[424305237,1780759845000,-693.39197629,0.00024453,2]
[424305297,1780759845000,-151.0,0.00024658,2]
[424305250,1780759845000,-209.40437684,0.00024453,2]
[424305239,1780759845000,-279.9045709,0.00024453,2]
[424305243,1780759845000,-200.08318283,0.00024453,2]
[424305241,1780759845000,-156.587,0.00024453,2]
[424305251,1780759845000,-1000.0,0.00024453,2]
[424305242,1780759845000,-1000.0,0.00024453,2]
[424305246,1780759845000,-209.40437684,0.00024453,2]
[424305264,1780759845000,-151.0,0.00024453,2]
[424305245,1780759845000,-1000.0,0.00024453,2]
[424305247,1780759845000,-1000.0,0.00024453,2]
[424305244,1780759845000,-1000.0,0.00024453,2]
[424305248,1780759845000,-1000.0,0.00024453,2]
[424305253,1780759845000,-200.0,0.00024453,2]
[424305252,1780759845000,-1000.0,0.00024453,2]
[424305254,1780759845000,-6240.52778667,0.00024453,2]
[424305256,1780759845000,-1000.0,0.00024453,2]
[424305255,1780759845000,-9552.16786547,0.00024453,2]
[424305262,1780759845000,-151.0,0.00024453,2]
[424305257,1780759845000,-160.0,0.00024453,2]
[424305258,1780759845000,-152.0,0.00024453,2]
[424305259,1780759845000,-1000.0,0.00024453,2]
[424305260,1780759845000,-500.0,0.00024453,2]
[424305249,1780759845000,-1000.0,0.00024453,2]
[424305294,1780759845000,-151.0,0.00024658,2]
[424305291,1780759845000,-1055.72,0.0002463,7]
[424305289,1780759845000,-151.0,0.00024618,2]
[424305332,1780759845000,-151.0,0.00024838,2]
[424305336,1780759845000,-961.58486558,0.00024948,2]
[424305335,1780759845000,-200.0,0.00024903,2]
[424305339,1780759845000,-548.32414592,0.00025,2]
[424305341,1780759845000,-649.81413638,0.00025,2]
[424305342,1780759845000,-3371.7312709,0.00025,2]
[424305338,1780759845000,-3158.69734692,0.00025,2]
[424305334,1780759845000,-151.0,0.00024893,2]
[424305337,1780759845000,-151.0,0.00024948,2]
[424305331,1780759845000,-894.19061325,0.00024838,2]
[424305340,1780759845000,-400.0,0.00025,2]
[424305343,1780759845000,-667.48872826,0.00025,2]
[424305344,1780759845000,-1093.96,0.00025,7]
[424305333,1780759845000,-927.27566594,0.00024893,2]
[424305347,1780759845000,-150.0,0.00025,7]
[424305354,1780759845000,-692.50525579,0.00025,2]
[424305349,1780759845000,-56288.56973458,0.00025,7]
[424305348,1780759845000,-226.0,0.00025,7]
[424305353,1780759845000,-1109.47162442,0.00025,2]
[424305346,1780759845000,-427.35551753,0.00025,2]
[424305352,1780759845000,-942.8986884,0.00025,2]
[424305350,1780759845000,-2103.11928448,0.00025,2]
[424305351,1780759845000,-213530.32866248,0.00025,2]
[424305355,1780759845000,-2980.79991138,0.00025,2]
[424305359,1780759845000,-439.12,0.00025,2]
[424305356,1780759845000,-215.80795776,0.00025,7]
[424305302,1780759845000,-151.0,0.00024658,2]
[424305357,1780759845000,-4129.869333,0.00025,2]
[424305345,1780759845000,-1754.35310846,0.00025,2]
[424305330,1780759845000,-151.0,0.00024783,2]
[424305358,1780759845000,-960.0,0.00025,2]
[424305322,1780759845000,-151.0,0.00024673,2]
[424305321,1780759845000,-7216.66169591,0.00024673,2]
[424305298,1780759845000,-151.0,0.00024658,2]
[424305295,1780759845000,-151.0,0.00024658,2]
[424305301,1780759845000,-151.0,0.00024658,2]
[424305303,1780759845000,-1000.0,0.00024658,2]
[424305312,1780759845000,-199.145761,0.00024658,2]
[424305313,1780759845000,-199.145761,0.00024658,2]
[424305304,1780759845000,-617.346821,0.00024658,2]
[424305315,1780759845000,-199.145761,0.00024658,2]
[424305310,1780759845000,-617.346821,0.00024658,2]
[424305308,1780759845000,-617.346821,0.00024658,2]
[424305309,1780759845000,-617.346821,0.00024658,2]
[424305307,1780759845000,-617.346821,0.00024658,2]
[424305314,1780759845000,-199.145761,0.00024658,2]
[424305300,1780759845000,-151.0,0.00024658,2]
[424305306,1780759845000,-617.346821,0.00024658,2]
[424305324,1780759845000,-7483.67817866,0.00024728,2]
[424305323,1780759845000,-831.51979762,0.00024728,2]
[424305326,1780759845000,-151.0,0.00024728,2]
[424305320,1780759845000,-801.85129954,0.00024673,2]
[424305305,1780759845000,-617.346821,0.00024658,2]
[424305316,1780759845000,-199.145761,0.00024658,2]
[424305319,1780759845000,-199.145761,0.00024658,2]
[424305328,1780759845000,-862.28603014,0.00024783,2]
[424305329,1780759845000,-5451.74277264,0.00024783,2]
[424305327,1780759845000,-3041.2,0.00024778,7]
[424305317,1780759845000,-199.145761,0.00024658,2]
[424305311,1780759845000,-617.346821,0.00024658,2]
[424305318,1780759845000,-199.145761,0.00024658,2]
[424305395,1780759846000,-317.0,0.00025095,7]
[424305399,1780759846000,-500.0,0.00025193,2]
[424305392,1780759846000,-300.0,0.00025095,7]
[424305397,1780759846000,-61677.0,0.000251,2]
[424305400,1780759846000,-855.05480606,0.00025397,2]
[424305402,1780759846000,-450.0,0.00025467,2]
[424305401,1780759846000,-312.50773146,0.00025417,2]
[424305394,1780759846000,-300.0,0.00025095,7]
[424305393,1780759846000,-300.0,0.00025095,7]
[424305391,1780759846000,-300.0,0.00025095,7]
[424305396,1780759846000,-172.0,0.00025095,7]
[424305398,1780759846000,-1125.0,0.00025187,2]
[424305415,1780759846000,-1536.04360648,0.00025549,2]
[424305416,1780759846000,-745.65223615,0.00025549,2]
[424305403,1780759846000,-450.0,0.00025467,2]
[424305417,1780759846000,-187.78006524,0.00025549,2]
[424305414,1780759846000,-225.18697532,0.00025549,2]
[424305405,1780759846000,-450.0,0.00025467,2]
[424305407,1780759846000,-450.0,0.00025467,2]
[424305406,1780759846000,-450.0,0.00025467,2]
[424305411,1780759846000,-475.0,0.00025467,2]
[424305412,1780759846000,-495.39674861,0.00025511,2]
[424305410,1780759846000,-450.0,0.00025467,2]
[424305408,1780759846000,-450.0,0.00025467,2]
[424305379,1780759846000,-151.0,0.00025001,2]
[424305418,1780759846000,-301.0006985,0.00025549,2]
[424305404,1780759846000,-450.0,0.00025467,2]
[424305387,1780759846000,-300.0,0.00025095,7]
[424305372,1780759846000,-719.04747942,0.00025001,2]
[424305380,1780759846000,-217.15233878,0.00025001,2]
[424305420,1780759846000,-10272.10520532,0.00025549,2]
[424305360,1780759846000,-439.12,0.00025,2]
[424305365,1780759846000,-439.12,0.00025,2]
[424305362,1780759846000,-439.12,0.00025,2]
[424305363,1780759846000,-439.12,0.00025,2]
[424305364,1780759846000,-439.12,0.00025,2]
[424305361,1780759846000,-439.12,0.00025,2]
[424305366,1780759846000,-439.12,0.00025,2]
[424305368,1780759846000,-439.12,0.00025,2]
[424305367,1780759846000,-439.12,0.00025,2]
[424305377,1780759846000,-9905.59807649,0.00025001,2]
[424305371,1780759846000,-1481.2378076,0.00025001,2]
[424305373,1780759846000,-181.08010149,0.00025001,2]
[424305370,1780759846000,-217.15233878,0.00025001,2]
[424305369,1780759846000,-603.20650266,0.00025,2]
[424305376,1780759846000,-200.0,0.00025001,2]
[424305374,1780759846000,-290.26104002,0.00025001,2]
[424305375,1780759846000,-217.15233878,0.00025001,2]
[424305378,1780759846000,-500.0,0.00025001,2]
[424305390,1780759846000,-300.0,0.00025095,7]
[424305382,1780759846000,-165.82258507,0.00025003,2]
[424305385,1780759846000,-200.0,0.00025016,2]
[424305383,1780759846000,-997.16350561,0.00025003,2]
[424305388,1780759846000,-300.0,0.00025095,7]
[424305384,1780759846000,-151.0,0.00025003,2]
[424305389,1780759846000,-300.0,0.00025095,7]
[424305386,1780759846000,-13002.73,0.00025091,7]
[424305381,1780759846000,-151.0,0.00025001,2]
[424305421,1780759846000,-225.18697532,0.00025549,2]
[424305481,1780759846000,-2000.0,0.00026489,2]
[424305422,1780759846000,-500.0,0.00025549,2]
[424305454,1780759846000,-233.5188934,0.00026097,2]
[424305453,1780759846000,-10652.17309792,0.00026097,2]
[424305458,1780759846000,-151.0,0.00026097,2]
[424305455,1780759846000,-500.0,0.00026097,2]
[424305464,1780759846000,-1227.0,0.00026347,2]
[424305456,1780759846000,-151.0,0.00026097,2]
[424305459,1780759846000,-242.80105347,0.00026112,2]
[424305461,1780759846000,-167.96129714,0.00026291,2]
[424305462,1780759846000,-4204.8,0.00026296,2]
[424305460,1780759846000,-2288.0,0.0002626,2]
[424305463,1780759846000,-1274.0,0.00026347,2]
[424305476,1780759846000,-855.05480606,0.00026397,2]
[424305466,1780759846000,-3642.0,0.00026347,2]
[424305465,1780759846000,-6073.0,0.00026347,2]
[424305468,1780759846000,-1323.30755,0.00026384,2]
[424305469,1780759846000,-1323.30755,0.00026384,2]
[424305467,1780759846000,-1323.30755,0.00026384,2]
[424305470,1780759846000,-1323.30755,0.00026384,2]
[424305473,1780759846000,-1323.30755,0.00026384,2]
[424305471,1780759846000,-1323.30755,0.00026384,2]
[424305474,1780759846000,-1323.30755,0.00026384,2]
[424305475,1780759846000,-317.3299041,0.00026397,2]
[424305472,1780759846000,-1323.30755,0.00026384,2]
[424305477,1780759846000,-27958.64236527,0.000264,2]
[424305480,1780759846000,-200.0,0.00026459,2]
[424305425,1780759846000,-151.0,0.00025549,2]
[424305479,1780759846000,-417.54734895,0.00026446,2]
[424305457,1780759846000,-233.5188934,0.00026097,2]
[424305446,1780759846000,-5530.0,0.00026,3]
[424305478,1780759846000,-718.0,0.00026415,10]
[424305445,1780759846000,-220.12007771,0.00026,2]
[424305447,1780759846000,-233.5188934,0.00026097,2]
[424305424,1780759846000,-225.18697532,0.00025549,2]
[424305419,1780759846000,-200.0,0.00025549,2]
[424305426,1780759846000,-200.0,0.00025564,2]
[424305427,1780759846000,-277.58556865,0.00025568,2]
[424305428,1780759846000,-272.55,0.00025644,2]
[424305429,1780759846000,-200.0,0.00025681,2]
[424305433,1780759846000,-39685.16,0.00025786,2]
[424305432,1780759846000,-4318.95,0.00025786,2]
[424305434,1780759846000,-423.33,0.00025786,2]
[424305431,1780759846000,-950.31,0.00025749,7]
[424305436,1780759846000,-1600.69,0.00025786,2]
[424305440,1780759846000,-160.0,0.00025822,2]
[424305423,1780759846000,-151.0,0.00025549,2]
[424305439,1780759846000,-217.15233878,0.00025822,2]
[424305435,1780759846000,-28736.2,0.00025786,2]
[424305444,1780759846000,-4599.10902732,0.00026,2]
[424305443,1780759846000,-400.0,0.00026,2]
[424305449,1780759846000,-773.24136889,0.00026097,2]
[424305448,1780759846000,-1592.87721992,0.00026097,2]
[424305452,1780759846000,-200.0,0.00026097,2]
[424305450,1780759846000,-194.72792766,0.00026097,2]
[424305442,1780759846000,-610.98305302,0.0002599,2]
[424305441,1780759846000,-151.0,0.00025924,4]
[424305438,1780759846000,-156.587,0.00025822,2]
[424305437,1780759846000,-215.80795776,0.000258,7]
[424305430,1780759846000,-207.17,0.00025741,2]
[424305451,1780759846000,-312.13772435,0.00026097,2]
[424305519,1780759847000,-1000.0,0.00026489,2]
[424305516,1780759847000,-1000.0,0.00026489,2]
[424305520,1780759847000,-1000.0,0.00026489,2]
[424305518,1780759847000,-1000.0,0.00026489,2]
[424305515,1780759847000,-1000.0,0.00026489,2]
[424305513,1780759847000,-1000.0,0.00026489,2]
[424305523,1780759847000,-1000.0,0.00026489,2]
[424305522,1780759847000,-1000.0,0.00026489,2]
[424305512,1780759847000,-1000.0,0.00026489,2]
[424305521,1780759847000,-1000.0,0.00026489,2]
[424305517,1780759847000,-1000.0,0.00026489,2]
[424305514,1780759847000,-1000.0,0.00026489,2]
[424305534,1780759847000,-151.0,0.00026645,2]
[424305524,1780759847000,-470.36,0.00026489,2]
[424305526,1780759847000,-1651.81367706,0.00026645,2]
[424305528,1780759847000,-201.93286098,0.00026645,2]
[424305529,1780759847000,-323.68682015,0.00026645,2]
[424305527,1780759847000,-801.85129954,0.00026645,2]
[424305533,1780759847000,-500.0,0.00026645,2]
[424305531,1780759847000,-11046.30350254,0.00026645,2]
[424305532,1780759847000,-242.15909246,0.00026645,2]
[424305530,1780759847000,-200.0,0.00026645,2]
[424305535,1780759847000,-242.15909246,0.00026645,2]
[424305546,1780759847000,-530.0,0.00027,2]
[424305509,1780759847000,-1000.0,0.00026489,2]
[424305542,1780759847000,-400.0,0.00027,2]
[424305525,1780759847000,-242.15909246,0.00026645,2]
[424305510,1780759847000,-1000.0,0.00026489,2]
[424305494,1780759847000,-2000.0,0.00026489,2]
[424305507,1780759847000,-1000.0,0.00026489,2]
[424305536,1780759847000,-151.0,0.00026645,2]
[424305482,1780759847000,-2000.0,0.00026489,2]
[424305485,1780759847000,-2000.0,0.00026489,2]
[424305483,1780759847000,-2000.0,0.00026489,2]
[424305486,1780759847000,-2000.0,0.00026489,2]
[424305484,1780759847000,-2000.0,0.00026489,2]
[424305489,1780759847000,-2000.0,0.00026489,2]
[424305487,1780759847000,-2000.0,0.00026489,2]
[424305488,1780759847000,-2000.0,0.00026489,2]
[424305490,1780759847000,-2000.0,0.00026489,2]
[424305493,1780759847000,-2000.0,0.00026489,2]
[424305491,1780759847000,-2000.0,0.00026489,2]
[424305511,1780759847000,-1000.0,0.00026489,2]
[424305495,1780759847000,-720.91,0.00026489,2]
[424305499,1780759847000,-1000.0,0.00026489,2]
[424305500,1780759847000,-1000.0,0.00026489,2]
[424305497,1780759847000,-1000.0,0.00026489,2]
[424305498,1780759847000,-1000.0,0.00026489,2]
[424305496,1780759847000,-1000.0,0.00026489,2]
[424305501,1780759847000,-1000.0,0.00026489,2]
[424305503,1780759847000,-1000.0,0.00026489,2]
[424305506,1780759847000,-1000.0,0.00026489,2]
[424305504,1780759847000,-1000.0,0.00026489,2]
[424305505,1780759847000,-1000.0,0.00026489,2]
[424305502,1780759847000,-1000.0,0.00026489,2]
[424305508,1780759847000,-1000.0,0.00026489,2]
[424305492,1780759847000,-2000.0,0.00026489,2]
[424305537,1780759847000,-348.0,0.0002672,2]
[424305598,1780759847000,-617.346821,0.00027291,2]
[424305540,1780759847000,-151.0,0.00026924,4]
[424305571,1780759847000,-5966.1357048,0.00027291,2]
[424305575,1780759847000,-219.048138,0.00027291,2]
[424305574,1780759847000,-151.0,0.00027291,2]
[424305576,1780759847000,-192.967881,0.00027291,2]
[424305582,1780759847000,-1323.30755,0.00027291,2]
[424305583,1780759847000,-1323.30755,0.00027291,2]
[424305580,1780759847000,-1323.30755,0.00027291,2]
[424305577,1780759847000,-192.967881,0.00027291,2]
[424305578,1780759847000,-192.967881,0.00027291,2]
[424305581,1780759847000,-1323.30755,0.00027291,2]
[424305579,1780759847000,-192.967881,0.00027291,2]
[424305585,1780759847000,-342.548366,0.00027291,2]
[424305573,1780759847000,-151.0,0.00027291,2]
[424305595,1780759847000,-151.0,0.00027291,2]
[424305584,1780759847000,-342.548366,0.00027291,2]
[424305590,1780759847000,-333.170844,0.00027291,2]
[424305592,1780759847000,-151.0,0.00027291,2]
[424305588,1780759847000,-333.170844,0.00027291,2]
[424305589,1780759847000,-333.170844,0.00027291,2]
[424305587,1780759847000,-342.548366,0.00027291,2]
[424305593,1780759847000,-151.0,0.00027291,2]
[424305594,1780759847000,-151.0,0.00027291,2]
[424305591,1780759847000,-333.170844,0.00027291,2]
[424305597,1780759847000,-194.712125,0.00027291,2]
[424305599,1780759847000,-617.346821,0.00027291,2]
[424305547,1780759847000,-495.39674861,0.00027008,2]
[424305586,1780759847000,-342.548366,0.00027291,2]
[424305572,1780759847000,-151.0,0.00027291,2]
[424305596,1780759847000,-151.0,0.00027291,2]
[424305568,1780759847000,-4233.3790186,0.00027291,2]
[424305567,1780759847000,-300.0,0.0002729,10]
[424305539,1780759847000,-5530.0,0.000269,5]
[424305538,1780759847000,-13002.73,0.00026788,7]
[424305545,1780759847000,-167.46233317,0.00027,2]
[424305543,1780759847000,-250.0,0.00027,2]
[424305544,1780759847000,-1053.083117,0.00027,2]
[424305548,1780759847000,-716.0,0.00027137,2]
[424305553,1780759847000,-747.80937859,0.00027192,2]
[424305550,1780759847000,-225.18697532,0.00027191,2]
[424305549,1780759847000,-162.380719,0.00027191,2]
[424305554,1780759847000,-251.11897888,0.00027193,2]
[424305551,1780759847000,-160.0,0.00027191,2]
[424305557,1780759847000,-209.40437684,0.00027193,2]
[424305541,1780759847000,-268.02573528,0.00026924,2]
[424305552,1780759847000,-599.60298507,0.00027192,2]
[424305555,1780759847000,-1712.93078311,0.00027193,2]
[424305565,1780759847000,-151.0,0.00027193,2]
[424305566,1780759847000,-200.0,0.00027238,2]
[424305561,1780759847000,-251.11897888,0.00027193,2]
[424305564,1780759847000,-251.11897888,0.00027193,2]
[424305569,1780759847000,-5966.1357048,0.00027291,2]
[424305563,1780759847000,-151.0,0.00027193,2]
[424305559,1780759847000,-200.0,0.00027193,2]
[424305560,1780759847000,-11455.01673214,0.00027193,2]
[424305570,1780759847000,-958587.6218348,0.00027291,2]
[424305556,1780759847000,-831.51979762,0.00027193,2]
[424305558,1780759847000,-335.66323249,0.00027193,2]
[424305562,1780759847000,-500.0,0.00027193,2]
[424305639,1780759848000,-151.0,0.00027397,2]
[424305640,1780759848000,-151.0,0.00027397,2]
[424305637,1780759848000,-151.0,0.00027397,2]
[424305638,1780759848000,-151.0,0.00027397,2]
[424305629,1780759848000,-1300.7,0.00027397,2]
[424305633,1780759848000,-1470.24,0.00027397,2]
[424305630,1780759848000,-570.03653737,0.00027397,7]
[424305624,1780759848000,-151.0,0.00027291,2]
[424305636,1780759848000,-528.8,0.00027397,2]
[424305634,1780759848000,-1048.42,0.00027397,2]
[424305622,1780759848000,-699.9533,0.00027291,2]
[424305645,1780759848000,-151.0,0.00027397,2]
[424305642,1780759848000,-151.0,0.00027397,2]
[424305643,1780759848000,-151.0,0.00027397,2]
[424305635,1780759848000,-3084.94,0.00027397,2]
[424305647,1780759848000,-151.0,0.00027397,2]
[424305646,1780759848000,-151.0,0.00027397,2]
[424305644,1780759848000,-151.0,0.00027397,2]
[424305648,1780759848000,-151.0,0.00027397,2]
[424305651,1780759848000,-433.109753,0.00027397,2]
[424305649,1780759848000,-433.109753,0.00027397,2]
[424305650,1780759848000,-433.109753,0.00027397,2]
[424305659,1780759848000,-433.109753,0.00027397,2]
[424305626,1780759848000,-8268.97659081,0.0002739,2]
[424305641,1780759848000,-151.0,0.00027397,2]
[424305632,1780759848000,-300.0,0.00027397,2]
[424305618,1780759848000,-699.9533,0.00027291,2]
[424305628,1780759848000,-300.0,0.00027396,10]
[424305657,1780759848000,-433.109753,0.00027397,2]
[424305605,1780759848000,-2532.201305,0.00027291,2]
[424305606,1780759848000,-2532.201305,0.00027291,2]
[424305608,1780759848000,-2532.201305,0.00027291,2]
[424305607,1780759848000,-2532.201305,0.00027291,2]
[424305604,1780759848000,-194.712125,0.00027291,2]
[424305609,1780759848000,-151.0,0.00027291,2]
[424305600,1780759848000,-617.346821,0.00027291,2]
[424305602,1780759848000,-617.346821,0.00027291,2]
[424305601,1780759848000,-194.712125,0.00027291,2]
[424305603,1780759848000,-194.712125,0.00027291,2]
[424305610,1780759848000,-199.145761,0.00027291,2]
[424305620,1780759848000,-699.9533,0.00027291,2]
[424305617,1780759848000,-299.732555,0.00027291,2]
[424305619,1780759848000,-151.0,0.00027291,2]
[424305613,1780759848000,-199.145761,0.00027291,2]
[424305612,1780759848000,-199.145761,0.00027291,2]
[424305614,1780759848000,-299.732555,0.00027291,2]
[424305611,1780759848000,-199.145761,0.00027291,2]
[424305615,1780759848000,-299.732555,0.00027291,2]
[424305616,1780759848000,-299.732555,0.00027291,2]
[424305623,1780759848000,-151.0,0.00027291,2]
[424305625,1780759848000,-4185.50640368,0.0002739,2]
[424305621,1780759848000,-699.9533,0.00027291,2]
[424305627,1780759848000,-300.0,0.00027396,10]
[424305631,1780759848000,-1500.0,0.00027397,2]
[424305656,1780759848000,-433.109753,0.00027397,2]
[424305658,1780759848000,-433.109753,0.00027397,2]
[424305653,1780759848000,-433.109753,0.00027397,2]
[424305690,1780759848000,-1094.222631,0.00027397,2]
[424305688,1780759848000,-1094.222631,0.00027397,2]
[424305692,1780759848000,-1094.222631,0.00027397,2]
[424305689,1780759848000,-1094.222631,0.00027397,2]
[424305691,1780759848000,-1094.222631,0.00027397,2]
[424305693,1780759848000,-1094.222631,0.00027397,2]
[424305694,1780759848000,-1094.222631,0.00027397,2]
[424305696,1780759848000,-1094.222631,0.00027397,2]